[Event "Titled Tuesday Blitz May 23 Early 2023"]
[White "Saya, Ethan"]
[Black "Rodriguez Santiago, Jaime"]
[WhiteFideId "26095181"]
[BlackFideId "3100898"]
[WhiteElo "2164"]
[BlackElo "2025"]
[Result "0-1"]
[Round "05"]
[TimeControl "180+2"]
[Date "2023.05.23"]
[WhiteClock "0:00:00"]
[BlackClock "0:00:18"]

1. e4 {[%clk 0:02:54]}  c6 {[%clk 0:02:59]} 2. d4 {[%clk 0:02:51]}  d5 {[%clk 0:02:59]} 3. Nd2 {[%clk 0:02:51]}  dxe4 {[%clk 0:02:59]} 4. Nxe4 {[%clk 0:02:51]}  Nf6 {[%clk 0:03:00]} 5. Nxf6+ {[%clk 0:02:51]}  exf6 {[%clk 0:03:00]} 6. c3 {[%clk 0:02:51]}  Bd6 {[%clk 0:03:00]} 7. Bd3 {[%clk 0:02:52]}  O-O {[%clk 0:03:01]} 8. Qc2 {[%clk 0:02:53]}  Re8+ {[%clk 0:03:01]} 9. Ne2 {[%clk 0:02:53]}  h5 {[%clk 0:03:01]} 10. Be3 {[%clk 0:02:53]}  Be6 {[%clk 0:02:48]} 11. O-O {[%clk 0:02:49]}  h4 {[%clk 0:02:47]} 12. h3 {[%clk 0:02:49]}  Nd7 {[%clk 0:02:30]} 13. Bf4 {[%clk 0:02:49]}  Nf8 {[%clk 0:02:24]} 14. Rfe1 {[%clk 0:02:45]}  Qd7 {[%clk 0:02:20]} 15. b3 {[%clk 0:02:36]}  Rad8 {[%clk 0:02:18]} 16. Rad1 {[%clk 0:02:33]}  b5 {[%clk 0:01:52]} 17. Qc1 {[%clk 0:02:09]}  a5 {[%clk 0:01:40]} 18. Bxd6 {[%clk 0:02:09]}  Qxd6 {[%clk 0:01:40]} 19. Qf4 {[%clk 0:02:10]}  Qxf4 {[%clk 0:01:36]} 20. Nxf4 {[%clk 0:02:10]}  Bd7 {[%clk 0:01:31]} 21. Kf1 {[%clk 0:01:43]}  g6 {[%clk 0:01:29]} 22. Rxe8 {[%clk 0:01:42]}  Rxe8 {[%clk 0:01:28]} 23. Re1 {[%clk 0:01:42]}  Rxe1+ {[%clk 0:01:22]} 24. Kxe1 {[%clk 0:01:43]}  f5 {[%clk 0:01:20]} 25. c4 {[%clk 0:01:36]}  Ne6 {[%clk 0:01:13]} 26. Ne2 {[%clk 0:01:23]}  Kf8 {[%clk 0:01:07]} 27. Kd2 {[%clk 0:01:23]}  Ke7 {[%clk 0:01:07]} 28. Ke3 {[%clk 0:01:22]}  Kd6 {[%clk 0:01:05]} 29. c5+ {[%clk 0:01:10]}  Ke7 {[%clk 0:01:01]} 30. Nf4 {[%clk 0:00:55]}  g5 {[%clk 0:00:51]} 31. Ne2 {[%clk 0:00:41]}  Nc7 {[%clk 0:00:51]} 32. Kd2 {[%clk 0:00:36]}  b4 {[%clk 0:00:47]} 33. Bc4 {[%clk 0:00:35]}  Be6 {[%clk 0:00:45]} 34. Kd3 {[%clk 0:00:34]}  Kf6 {[%clk 0:00:43]} 35. f4 {[%clk 0:00:31]}  g4 {[%clk 0:00:41]} 36. Ke3 {[%clk 0:00:17]}  Bd5 {[%clk 0:00:38]} 37. Kf2 {[%clk 0:00:14]}  g3+ {[%clk 0:00:37]} 38. Kf1 {[%clk 0:00:13]}  Be4 {[%clk 0:00:34]} 39. Ng1 {[%clk 0:00:10]}  Bb1 {[%clk 0:00:33]} 40. Nf3 {[%clk 0:00:10]}  Bxa2 {[%clk 0:00:33]} 41. Nxh4 {[%clk 0:00:11]}  a4 {[%clk 0:00:33]} 42. Nf3 {[%clk 0:00:09]}  Bxb3 {[%clk 0:00:31]} 43. Bxb3 {[%clk 0:00:09]}  axb3 {[%clk 0:00:31]} 44. Nd2 {[%clk 0:00:10]}  b2 {[%clk 0:00:31]} 45. Ke2 {[%clk 0:00:10]}  Nb5 {[%clk 0:00:31]} 46. Kd3 {[%clk 0:00:06]}  Na3 {[%clk 0:00:31]} 47. d5 {[%clk 0:00:05]}  cxd5 {[%clk 0:00:29]} 48. Kd4 {[%clk 0:00:05]}  b1=Q {[%clk 0:00:28]} 49. Nxb1 {[%clk 0:00:05]}  Nxb1 {[%clk 0:00:29]} 50. Kxd5 {[%clk 0:00:06]}  Ke7 {[%clk 0:00:27]} 51. Kc4 {[%clk 0:00:06]}  Nd2+ {[%clk 0:00:25]} 52. Kxb4 {[%clk 0:00:05]}  Nf1 {[%clk 0:00:25]} 53. h4 {[%clk 0:00:04]}  Ne3 {[%clk 0:00:25]} 54. h5 {[%clk 0:00:05]}  Nd5+ {[%clk 0:00:20]} 55. Kb5 {[%clk 0:00:05]}  Nxf4 {[%clk 0:00:20]} 56. h6 {[%clk 0:00:06]}  Ng6 {[%clk 0:00:20]} 57. Kb6 {[%clk 0:00:04]}  f4 {[%clk 0:00:20]} 58. c6 {[%clk 0:00:05]}  f3 {[%clk 0:00:18]} 59. c7 {[%clk 0:00:05]}  f2 {[%clk 0:00:16]} 60. c8=Q {[%clk 0:00:05]}  f1=Q {[%clk 0:00:17]} 61. Qc7+ {[%clk 0:00:05]}  Ke6 {[%clk 0:00:17]} 62. Qxg3 {[%clk 0:00:05]}  Qb1+ {[%clk 0:00:14]} 63. Kc5 {[%clk 0:00:05]}  Qc2+ {[%clk 0:00:13]} 64. Kb4 {[%clk 0:00:05]}  Qd2+ {[%clk 0:00:12]} 65. Kc4 {[%clk 0:00:05]}  Qd5+ {[%clk 0:00:12]} 66. Kc3 {[%clk 0:00:05]}  Qe5+ {[%clk 0:00:12]} 67. Qxe5+ {[%clk 0:00:05]}  Kxe5 {[%clk 0:00:12]} 68. Kd3 {[%clk 0:00:06]}  Kf6 {[%clk 0:00:13]} 69. Ke4 {[%clk 0:00:06]}  Kg5 {[%clk 0:00:13]} 70. h7 {[%clk 0:00:05]}  Kh6 {[%clk 0:00:14]} 71. Kf5 {[%clk 0:00:05]}  Kxh7 {[%clk 0:00:14]} 72. Kf6 {[%clk 0:00:06]}  Kg8 {[%clk 0:00:14]} 73. g4 {[%clk 0:00:06]}  Nf8 {[%clk 0:00:14]} 74. g5 {[%clk 0:00:05]}  Ng6 {[%clk 0:00:13]} 75. Kf5 {[%clk 0:00:04]}  Kg7 {[%clk 0:00:13]} 76. Kg4 {[%clk 0:00:04]}  Ne7 {[%clk 0:00:13]} 77. Kf4 {[%clk 0:00:04]}  Kg6 {[%clk 0:00:13]} 78. Kg4 {[%clk 0:00:04]}  Nf5 {[%clk 0:00:14]} 79. Kf4 {[%clk 0:00:04]}  Ng7 {[%clk 0:00:14]} 80. Kg4 {[%clk 0:00:04]}  Ne6 {[%clk 0:00:15]} 81. Kh4 {[%clk 0:00:05]}  Nxg5 {[%clk 0:00:16]} 82. Kg3 {[%clk 0:00:05]}  Ne6 {[%clk 0:00:16]} 83. Kh2 {[%clk 0:00:06]}  f5 {[%clk 0:00:17]} 84. Kh1 {[%clk 0:00:00]}  Kf6 {[%clk 0:00:18]} 0-1


[Site "https://www.chess.com"]

[Event "Titled Tuesday Blitz May 23 Early 2023"]
[White "Yanayt, Eugene"]
[Black "cristianserban1"]
[WhiteFideId "2020165"]
[WhiteElo "2083"]
[BlackElo "2530"]
[Result "0-1"]
[Round "05"]
[TimeControl "180+2"]
[Date "2023.05.23"]
[WhiteClock "0:00:04"]
[BlackClock "0:00:10"]

1. Nf3 {[%clk 0:03:00]}  Nf6 {[%clk 0:02:57]} 2. c4 {[%clk 0:03:00]}  e6 {[%clk 0:02:55]} 3. g3 {[%clk 0:02:59]}  d5 {[%clk 0:02:56]} 4. d4 {[%clk 0:02:59]}  c6 {[%clk 0:02:56]} 5. Bg2 {[%clk 0:03:00]}  dxc4 {[%clk 0:02:54]} 6. Ne5 {[%clk 0:02:57]}  b5 {[%clk 0:02:53]} 7. a4 {[%clk 0:02:56]}  Nd5 {[%clk 0:02:44]} 8. e4 {[%clk 0:02:53]}  Nb4 {[%clk 0:02:42]} 9. b3 {[%clk 0:02:42]}  Bd6 {[%clk 0:02:34]} 10. Ba3 {[%clk 0:02:05]}  Bxe5 {[%clk 0:02:26]} 11. Bxb4 {[%clk 0:02:05]}  Qxd4 {[%clk 0:02:17]} 12. Bc3 {[%clk 0:02:01]}  Qxd1+ {[%clk 0:02:13]} 13. Kxd1 {[%clk 0:02:01]}  Bxc3 {[%clk 0:02:12]} 14. Nxc3 {[%clk 0:02:01]}  b4 {[%clk 0:02:13]} 15. Na2 {[%clk 0:02:00]}  a5 {[%clk 0:02:07]} 16. bxc4 {[%clk 0:01:59]}  Ba6 {[%clk 0:02:04]} 17. Bf1 {[%clk 0:01:58]}  Nd7 {[%clk 0:02:03]} 18. Kc2 {[%clk 0:01:53]}  Nc5 {[%clk 0:02:02]} 19. Nc1 {[%clk 0:01:49]}  O-O-O {[%clk 0:01:53]} 20. f3 {[%clk 0:01:47]}  Rd7 {[%clk 0:01:51]} 21. Nd3 {[%clk 0:01:34]}  Nxd3 {[%clk 0:01:42]} 22. Bxd3 {[%clk 0:01:33]}  Rhd8 {[%clk 0:01:43]} 23. Rad1 {[%clk 0:01:30]}  b3+ {[%clk 0:01:18]} 24. Kc3 {[%clk 0:01:30]}  b2 {[%clk 0:01:18]} 25. Rd2 {[%clk 0:01:31]}  Rd4 {[%clk 0:00:57]} 26. Rb1 {[%clk 0:01:05]}  Bxc4 {[%clk 0:00:52]} 27. Rdxb2 {[%clk 0:01:05]}  Rxd3+ {[%clk 0:00:27]} 28. Kxc4 {[%clk 0:01:04]}  R8d4+ {[%clk 0:00:25]} 29. Kc5 {[%clk 0:01:04]}  Rb4 {[%clk 0:00:19]} 30. Rxb4 {[%clk 0:01:00]}  axb4 {[%clk 0:00:20]} 31. Kxc6 {[%clk 0:00:55]}  b3 {[%clk 0:00:19]} 32. a5 {[%clk 0:00:54]}  Rxf3 {[%clk 0:00:17]} 33. a6 {[%clk 0:00:49]}  Kb8 {[%clk 0:00:18]} 34. Rd1 {[%clk 0:00:47]}  Ka7 {[%clk 0:00:17]} 35. Kb5 {[%clk 0:00:39]}  b2 {[%clk 0:00:17]} 36. Rd7+ {[%clk 0:00:22]}  Ka8 {[%clk 0:00:17]} 37. Rd8+ {[%clk 0:00:22]}  Ka7 {[%clk 0:00:18]} 38. Rd7+ {[%clk 0:00:23]}  Kb8 {[%clk 0:00:18]} 39. Rb7+ {[%clk 0:00:20]}  Ka8 {[%clk 0:00:17]} 40. Ka4 {[%clk 0:00:18]}  Rf2 {[%clk 0:00:09]} 41. h4 {[%clk 0:00:18]}  e5 {[%clk 0:00:08]} 42. Ka5 {[%clk 0:00:17]}  f5 {[%clk 0:00:07]} 43. exf5 {[%clk 0:00:16]}  e4 {[%clk 0:00:07]} 44. g4 {[%clk 0:00:11]}  e3 {[%clk 0:00:07]} 45. Rxg7 {[%clk 0:00:06]}  b1=Q {[%clk 0:00:06]} 46. Rg8+ {[%clk 0:00:06]}  Qb8 {[%clk 0:00:07]} 47. Rxb8+ {[%clk 0:00:06]}  Kxb8 {[%clk 0:00:08]} 48. Kb6 {[%clk 0:00:05]}  Rb2+ {[%clk 0:00:08]} 49. Kc6 {[%clk 0:00:05]}  e2 {[%clk 0:00:09]} 50. f6 {[%clk 0:00:05]}  e1=Q {[%clk 0:00:09]} 51. f7 {[%clk 0:00:06]}  Qe6+ {[%clk 0:00:09]} 52. Kc5 {[%clk 0:00:05]}  Rc2+ {[%clk 0:00:10]} 53. Kd4 {[%clk 0:00:04]}  Qc4+ {[%clk 0:00:10]} 0-1


[Site "https://www.chess.com"]

[Event "Titled Tuesday Blitz May 23 Early 2023"]
[White "Manukyan, Artyom"]
[Black "Fajdetic, Hrvoje"]
[WhiteFideId "13305786"]
[BlackFideId "14501945"]
[WhiteElo "2078"]
[BlackElo "2185"]
[Result "1-0"]
[Round "05"]
[TimeControl "180+2"]
[Date "2023.05.23"]
[WhiteClock "0:00:47"]
[BlackClock "0:00:00"]

1. Nf3 {[%clk 0:02:58]}  f5 {[%clk 0:02:46]} 2. g3 {[%clk 0:02:53]}  d6 {[%clk 0:02:45]} 3. Bg2 {[%clk 0:02:54]}  e5 {[%clk 0:02:45]} 4. O-O {[%clk 0:02:55]}  Nf6 {[%clk 0:02:45]} 5. c4 {[%clk 0:02:54]}  Be7 {[%clk 0:02:45]} 6. b3 {[%clk 0:02:54]}  O-O {[%clk 0:02:45]} 7. Bb2 {[%clk 0:02:55]}  c6 {[%clk 0:02:46]} 8. d3 {[%clk 0:02:56]}  Qe8 {[%clk 0:02:46]} 9. Nbd2 {[%clk 0:02:55]}  Qh5 {[%clk 0:02:46]} 10. e3 {[%clk 0:02:51]}  f4 {[%clk 0:02:30]} 11. exf4 {[%clk 0:02:50]}  exf4 {[%clk 0:02:29]} 12. Ne4 {[%clk 0:02:50]}  Nxe4 {[%clk 0:02:09]} 13. dxe4 {[%clk 0:02:50]}  Bg4 {[%clk 0:02:09]} 14. Qd3 {[%clk 0:02:48]}  Nd7 {[%clk 0:01:59]} 15. Rae1 {[%clk 0:02:44]}  Nc5 {[%clk 0:01:38]} 16. Qd4 {[%clk 0:02:36]}  Bf6 {[%clk 0:01:31]} 17. e5 {[%clk 0:02:36]}  dxe5 {[%clk 0:01:14]} 18. Nxe5 {[%clk 0:02:30]}  f3 {[%clk 0:00:51]} 19. Bh1 {[%clk 0:01:45]}  Nd7 {[%clk 0:00:25]} 20. Qxg4 {[%clk 0:01:26]}  Qxg4 {[%clk 0:00:22]} 21. Nxg4 {[%clk 0:01:27]}  Bxb2 {[%clk 0:00:22]} 22. Re7 {[%clk 0:01:28]}  Nc5 {[%clk 0:00:14]} 23. Rd1 {[%clk 0:01:12]}  Rad8 {[%clk 0:00:13]} 24. Rxd8 {[%clk 0:01:11]}  Rxd8 {[%clk 0:00:13]} 25. Bxf3 {[%clk 0:01:12]}  Rd2 {[%clk 0:00:11]} 26. b4 {[%clk 0:01:09]}  h5 {[%clk 0:00:10]} 27. Ne3 {[%clk 0:00:59]}  Nd3 {[%clk 0:00:10]} 28. Rd7 {[%clk 0:00:58]}  Rxf2 {[%clk 0:00:08]} 29. Bxh5 {[%clk 0:00:51]}  Rd2 {[%clk 0:00:06]} 30. Bg6 {[%clk 0:00:48]}  Kf8 {[%clk 0:00:05]} 31. Rxd3 {[%clk 0:00:45]}  Rxd3 {[%clk 0:00:03]} 32. Bxd3 {[%clk 0:00:46]}  Bd4 {[%clk 0:00:03]} 33. Kf2 {[%clk 0:00:47]}  a5 {[%clk 0:00:03]} 34. bxa5 {[%clk 0:00:46]}  Ke7 {[%clk 0:00:04]} 35. Kf3 {[%clk 0:00:47]}  Kd7 {[%clk 0:00:03]} 36. a4 {[%clk 0:00:46]}  Bc3 {[%clk 0:00:03]} 37. a6 {[%clk 0:00:46]}  bxa6 {[%clk 0:00:04]} 38. Ke4 {[%clk 0:00:46]}  Bb4 {[%clk 0:00:03]} 39. g4 {[%clk 0:00:46]}  Bd6 {[%clk 0:00:03]} 40. h4 {[%clk 0:00:46]}  Bg3 {[%clk 0:00:03]} 41. h5 {[%clk 0:00:46]}  Bh4 {[%clk 0:00:04]} 42. Nf5 {[%clk 0:00:45]}  Bf6 {[%clk 0:00:04]} 43. Kf4 {[%clk 0:00:44]}  Bc3 {[%clk 0:00:04]} 44. g5 {[%clk 0:00:44]}  Bd2+ {[%clk 0:00:03]} 45. Kg4 {[%clk 0:00:45]}  Ke6 {[%clk 0:00:03]} 46. Nxg7+ {[%clk 0:00:45]}  Ke5 {[%clk 0:00:03]} 47. Nf5 {[%clk 0:00:46]}  a5 {[%clk 0:00:02]} 48. h6 {[%clk 0:00:46]}  Bc3 {[%clk 0:00:02]} 49. h7 {[%clk 0:00:46]}  Ke6 {[%clk 0:00:00]} 50. g6 {[%clk 0:00:47]} 1-0


[Site "https://www.chess.com"]

[Event "Titled Tuesday Blitz May 23 Early 2023"]
[White "Wimalasuriya, Kasun M."]
[Black "Reprintsev, Alexander"]
[WhiteFideId "9906789"]
[BlackFideId "14100541"]
[WhiteElo "2291"]
[BlackElo "2218"]
[Result "1/2-1/2"]
[Round "05"]
[TimeControl "180+2"]
[Date "2023.05.23"]
[WhiteClock "0:00:17"]
[BlackClock "0:00:27"]

1. d4 {[%clk 0:02:54]}  d5 {[%clk 0:02:59]} 2. Nf3 {[%clk 0:02:53]}  Nc6 {[%clk 0:02:58]} 3. g3 {[%clk 0:02:49]}  Bf5 {[%clk 0:02:57]} 4. Bg2 {[%clk 0:02:47]}  Nb4 {[%clk 0:02:57]} 5. Na3 {[%clk 0:02:46]}  e6 {[%clk 0:02:57]} 6. c3 {[%clk 0:02:45]}  Nc6 {[%clk 0:02:56]} 7. Nc2 {[%clk 0:02:45]}  h6 {[%clk 0:02:52]} 8. O-O {[%clk 0:02:45]}  Nf6 {[%clk 0:02:52]} 9. Re1 {[%clk 0:02:40]}  Be7 {[%clk 0:02:52]} 10. Ne5 {[%clk 0:02:34]}  O-O {[%clk 0:02:48]} 11. Ne3 {[%clk 0:02:28]}  Bh7 {[%clk 0:02:46]} 12. N3g4 {[%clk 0:02:25]}  Nxg4 {[%clk 0:02:41]} 13. Nxg4 {[%clk 0:02:25]}  f5 {[%clk 0:02:35]} 14. Ne5 {[%clk 0:02:22]}  Nxe5 {[%clk 0:02:35]} 15. dxe5 {[%clk 0:02:23]}  c5 {[%clk 0:02:33]} 16. c4 {[%clk 0:02:21]}  d4 {[%clk 0:02:23]} 17. Bxb7 {[%clk 0:02:21]}  Rb8 {[%clk 0:02:23]} 18. Bf3 {[%clk 0:02:19]}  g5 {[%clk 0:02:23]} 19. e3 {[%clk 0:01:54]}  d3 {[%clk 0:02:13]} 20. Qd2 {[%clk 0:01:45]}  Qd7 {[%clk 0:02:12]} 21. b3 {[%clk 0:01:43]}  f4 {[%clk 0:02:08]} 22. exf4 {[%clk 0:01:40]}  gxf4 {[%clk 0:02:08]} 23. Bg2 {[%clk 0:01:40]}  fxg3 {[%clk 0:01:58]} 24. hxg3 {[%clk 0:01:38]}  Bg5 {[%clk 0:01:58]} 25. f4 {[%clk 0:01:33]}  Qd4+ {[%clk 0:01:58]} 26. Kh2 {[%clk 0:01:25]}  Qxa1 {[%clk 0:01:58]} 27. fxg5 {[%clk 0:01:24]}  Qd4 {[%clk 0:01:53]} 28. gxh6 {[%clk 0:01:23]}  Qg4 {[%clk 0:01:51]} 29. Bh3 {[%clk 0:01:12]}  Qh5 {[%clk 0:01:47]} 30. Qg5+ {[%clk 0:00:56]}  Qxg5 {[%clk 0:01:46]} 31. Bxg5 {[%clk 0:00:57]}  Rf2+ {[%clk 0:01:46]} 32. Kg1 {[%clk 0:00:56]}  Rxa2 {[%clk 0:01:37]} 33. Bxe6+ {[%clk 0:00:54]}  Kf8 {[%clk 0:01:38]} 34. g4 {[%clk 0:00:40]}  d2 {[%clk 0:01:36]} 35. Rd1 {[%clk 0:00:39]}  Rxb3 {[%clk 0:01:28]} 36. Rxd2 {[%clk 0:00:38]}  Rxd2 {[%clk 0:01:27]} 37. Bxd2 {[%clk 0:00:39]}  Rd3 {[%clk 0:01:19]} 38. Bf4 {[%clk 0:00:30]}  a5 {[%clk 0:01:16]} 39. Bd5 {[%clk 0:00:24]}  a4 {[%clk 0:01:15]} 40. e6 {[%clk 0:00:24]}  Bg6 {[%clk 0:01:13]} 41. Bd6+ {[%clk 0:00:24]}  Kg8 {[%clk 0:01:13]} 42. e7+ {[%clk 0:00:19]}  Kh7 {[%clk 0:01:13]} 43. Be4 {[%clk 0:00:19]}  Rd1+ {[%clk 0:00:42]} 44. Kf2 {[%clk 0:00:19]}  Kxh6 {[%clk 0:00:37]} 45. Bxg6 {[%clk 0:00:18]}  Rxd6 {[%clk 0:00:37]} 46. e8=Q {[%clk 0:00:17]}  Rxg6 {[%clk 0:00:37]} 47. Qh8+ {[%clk 0:00:16]}  Kg5 {[%clk 0:00:37]} 48. Qh5+ {[%clk 0:00:16]}  Kf6 {[%clk 0:00:38]} 49. Qf5+ {[%clk 0:00:17]}  Kg7 {[%clk 0:00:38]} 50. Kg3 {[%clk 0:00:15]}  a3 {[%clk 0:00:37]} 51. Qxc5 {[%clk 0:00:14]}  Ra6 {[%clk 0:00:36]} 52. Qd4+ {[%clk 0:00:10]}  Kf8 {[%clk 0:00:30]} 53. Qa1 {[%clk 0:00:09]}  a2 {[%clk 0:00:29]} 54. Kf4 {[%clk 0:00:10]}  Ke7 {[%clk 0:00:29]} 55. Ke4 {[%clk 0:00:10]}  Kd6 {[%clk 0:00:29]} 56. Kd4 {[%clk 0:00:10]}  Ra3 {[%clk 0:00:29]} 57. g5 {[%clk 0:00:08]}  Ke7 {[%clk 0:00:29]} 58. g6 {[%clk 0:00:08]}  Kf6 {[%clk 0:00:29]} 59. Kc5+ {[%clk 0:00:07]}  Kxg6 {[%clk 0:00:29]} 60. Kb4 {[%clk 0:00:07]}  Ra8 {[%clk 0:00:29]} 61. Kb3 {[%clk 0:00:07]}  Kf5 {[%clk 0:00:28]} 62. Kb2 {[%clk 0:00:05]}  Rb8+ {[%clk 0:00:28]} 63. Kc3 {[%clk 0:00:05]}  Ra8 {[%clk 0:00:28]} 64. Qf1+ {[%clk 0:00:03]}  Ke6 {[%clk 0:00:27]} 65. Qe2+ {[%clk 0:00:03]}  Kd7 {[%clk 0:00:26]} 66. Qd1+ {[%clk 0:00:02]}  Kc7 {[%clk 0:00:26]} 67. Qa1 {[%clk 0:00:02]}  Kc6 {[%clk 0:00:25]} 68. Kb4 {[%clk 0:00:02]}  Kc7 {[%clk 0:00:23]} 69. Kb3 {[%clk 0:00:02]}  Rb8+ {[%clk 0:00:22]} 70. Ka3 {[%clk 0:00:02]}  Ra8+ {[%clk 0:00:22]} 71. Kb2 {[%clk 0:00:02]}  Rb8+ {[%clk 0:00:23]} 72. Kc1 {[%clk 0:00:02]}  Rb1+ {[%clk 0:00:21]} 73. Qxb1 {[%clk 0:00:03]}  axb1=Q+ {[%clk 0:00:22]} 74. Kxb1 {[%clk 0:00:04]}  Kc6 {[%clk 0:00:22]} 75. Kb2 {[%clk 0:00:04]}  Kc5 {[%clk 0:00:23]} 76. Kc3 {[%clk 0:00:05]}  Kc6 {[%clk 0:00:24]} 77. Kb4 {[%clk 0:00:05]}  Kb6 {[%clk 0:00:24]} 78. Ka4 {[%clk 0:00:05]}  Kc5 {[%clk 0:00:24]} 79. Kb3 {[%clk 0:00:06]}  Kc6 {[%clk 0:00:25]} 80. Kb4 {[%clk 0:00:07]}  Kb6 {[%clk 0:00:25]} 81. Kc3 {[%clk 0:00:08]}  Kc5 {[%clk 0:00:25]} 82. Kd3 {[%clk 0:00:08]}  Kc6 {[%clk 0:00:25]} 83. Kd4 {[%clk 0:00:09]}  Kd6 {[%clk 0:00:25]} 84. c5+ {[%clk 0:00:10]}  Kc6 {[%clk 0:00:26]} 85. Kc4 {[%clk 0:00:11]}  Kc7 {[%clk 0:00:26]} 86. Kb5 {[%clk 0:00:12]}  Kb7 {[%clk 0:00:26]} 87. c6+ {[%clk 0:00:13]}  Kc7 {[%clk 0:00:27]} 88. Kc5 {[%clk 0:00:14]}  Kc8 {[%clk 0:00:26]} 89. Kb6 {[%clk 0:00:15]}  Kb8 {[%clk 0:00:27]} 90. c7+ {[%clk 0:00:16]}  Kc8 {[%clk 0:00:27]} 91. Kc6 {[%clk 0:00:17]} 1/2-1/2


[Site "https://www.chess.com"]

[Event "Titled Tuesday Blitz May 23 Early 2023"]
[White "Santos Flores, Alberto"]
[Black "Antonio, Jorge Carlos"]
[WhiteFideId "3601234"]
[BlackFideId "113190"]
[WhiteElo "2235"]
[BlackElo "2247"]
[Result "1-0"]
[Round "05"]
[TimeControl "180+2"]
[Date "2023.05.23"]
[WhiteClock "0:00:14"]
[BlackClock "0:00:00"]

1. e4 {[%clk 0:02:55]}  c5 {[%clk 0:02:59]} 2. Nf3 {[%clk 0:02:55]}  e6 {[%clk 0:02:58]} 3. g3 {[%clk 0:02:55]}  Nc6 {[%clk 0:02:57]} 4. Bg2 {[%clk 0:02:53]}  g6 {[%clk 0:02:57]} 5. d4 {[%clk 0:02:52]}  cxd4 {[%clk 0:02:55]} 6. Nxd4 {[%clk 0:02:53]}  Bg7 {[%clk 0:02:55]} 7. Nb5 {[%clk 0:02:52]}  Qb6 {[%clk 0:02:26]} 8. Nd6+ {[%clk 0:02:49]}  Kf8 {[%clk 0:02:25]} 9. Nc3 {[%clk 0:02:45]}  Nd4 {[%clk 0:02:02]} 10. Nc4 {[%clk 0:02:37]}  Qc7 {[%clk 0:01:53]} 11. Ne3 {[%clk 0:02:32]}  Ne7 {[%clk 0:01:46]} 12. O-O {[%clk 0:02:31]}  h5 {[%clk 0:01:45]} 13. f4 {[%clk 0:02:31]}  d6 {[%clk 0:01:41]} 14. Ne2 {[%clk 0:01:55]}  Nxe2+ {[%clk 0:01:32]} 15. Qxe2 {[%clk 0:01:56]}  h4 {[%clk 0:01:31]} 16. Qc4 {[%clk 0:01:50]}  Qb6 {[%clk 0:01:26]} 17. g4 {[%clk 0:01:45]}  Bd7 {[%clk 0:01:25]} 18. f5 {[%clk 0:01:41]}  gxf5 {[%clk 0:01:20]} 19. gxf5 {[%clk 0:01:40]}  Bd4 {[%clk 0:01:13]} 20. fxe6 {[%clk 0:00:46]}  Bb5 {[%clk 0:00:56]} 21. Rxf7+ {[%clk 0:00:44]}  Ke8 {[%clk 0:00:56]} 22. Qb3 {[%clk 0:00:39]}  Bxe3+ {[%clk 0:00:52]} 23. Bxe3 {[%clk 0:00:39]}  Qc6 {[%clk 0:00:38]} 24. Kh1 {[%clk 0:00:27]}  h3 {[%clk 0:00:36]} 25. Bf3 {[%clk 0:00:26]}  Ng6 {[%clk 0:00:23]} 26. e5 {[%clk 0:00:22]}  Qa6 {[%clk 0:00:19]} 27. Bxb7 {[%clk 0:00:20]}  Qxb7+ {[%clk 0:00:06]} 28. Rxb7 {[%clk 0:00:20]}  Bc6+ {[%clk 0:00:05]} 29. Kg1 {[%clk 0:00:20]}  Nxe5 {[%clk 0:00:05]} 30. Kf2 {[%clk 0:00:18]}  Rf8+ {[%clk 0:00:03]} 31. Ke2 {[%clk 0:00:17]}  Bf3+ {[%clk 0:00:01]} 32. Kd2 {[%clk 0:00:17]}  Rc8 {[%clk 0:00:00]} 33. Qa4+ {[%clk 0:00:14]} 1-0


[Site "https://www.chess.com"]

[Event "Titled Tuesday Blitz May 23 Early 2023"]
[White "DIM90"]
[Black "Yurasova, Daria"]
[BlackFideId "34146919"]
[WhiteElo "2252"]
[BlackElo "2109"]
[Result "1-0"]
[Round "05"]
[TimeControl "180+2"]
[Date "2023.05.23"]
[WhiteClock "0:00:29"]
[BlackClock "0:00:05"]

1. e4 {[%clk 0:02:58]}  e5 {[%clk 0:02:56]} 2. Nf3 {[%clk 0:02:57]}  Nc6 {[%clk 0:02:53]} 3. Bb5 {[%clk 0:02:58]}  a6 {[%clk 0:02:52]} 4. Bxc6 {[%clk 0:02:58]}  dxc6 {[%clk 0:02:52]} 5. O-O {[%clk 0:02:59]}  Bg4 {[%clk 0:02:52]} 6. h3 {[%clk 0:02:58]}  h5 {[%clk 0:02:52]} 7. d3 {[%clk 0:02:58]}  Qf6 {[%clk 0:02:52]} 8. Nbd2 {[%clk 0:02:59]}  g5 {[%clk 0:02:51]} 9. Nc4 {[%clk 0:02:58]}  Bxf3 {[%clk 0:02:51]} 10. Qxf3 {[%clk 0:02:59]}  Qxf3 {[%clk 0:02:52]} 11. gxf3 {[%clk 0:02:59]}  f6 {[%clk 0:02:52]} 12. h4 {[%clk 0:02:59]}  gxh4 {[%clk 0:02:36]} 13. f4 {[%clk 0:02:57]}  exf4 {[%clk 0:02:36]} 14. Bxf4 {[%clk 0:02:55]}  O-O-O {[%clk 0:02:37]} 15. Kh2 {[%clk 0:02:53]}  Bd6 {[%clk 0:02:28]} 16. Nxd6+ {[%clk 0:02:52]}  cxd6 {[%clk 0:02:29]} 17. Rg1 {[%clk 0:02:52]}  Ne7 {[%clk 0:02:28]} 18. Rg7 {[%clk 0:02:50]}  Rhe8 {[%clk 0:02:19]} 19. Rag1 {[%clk 0:02:48]}  d5 {[%clk 0:02:08]} 20. f3 {[%clk 0:02:41]}  dxe4 {[%clk 0:02:06]} 21. fxe4 {[%clk 0:02:41]}  Rd7 {[%clk 0:01:56]} 22. Rh7 {[%clk 0:02:12]}  Ng8 {[%clk 0:00:52]} 23. Rxh5 {[%clk 0:02:02]}  c5 {[%clk 0:00:44]} 24. Rxc5+ {[%clk 0:02:01]}  Kd8 {[%clk 0:00:43]} 25. Rh5 {[%clk 0:01:57]}  Ne7 {[%clk 0:00:43]} 26. Rg7 {[%clk 0:01:46]}  Nc6 {[%clk 0:00:42]} 27. Rxd7+ {[%clk 0:01:43]}  Kxd7 {[%clk 0:00:43]} 28. Rh7+ {[%clk 0:01:42]}  Ke6 {[%clk 0:00:40]} 29. Rxb7 {[%clk 0:01:40]}  Nd4 {[%clk 0:00:39]} 30. Rb6+ {[%clk 0:01:34]}  Kf7 {[%clk 0:00:39]} 31. c3 {[%clk 0:01:23]}  Nf3+ {[%clk 0:00:38]} 32. Kh3 {[%clk 0:01:12]}  Ne1 {[%clk 0:00:36]} 33. d4 {[%clk 0:01:07]}  Rxe4 {[%clk 0:00:35]} 34. Bb8 {[%clk 0:01:04]}  Nd3 {[%clk 0:00:31]} 35. d5 {[%clk 0:00:55]}  Nf2+ {[%clk 0:00:22]} 36. Kg2 {[%clk 0:00:54]}  Re2 {[%clk 0:00:21]} 37. Kf3 {[%clk 0:00:53]}  Rc2 {[%clk 0:00:17]} 38. Rb7+ {[%clk 0:00:53]}  Kg6 {[%clk 0:00:17]} 39. d6 {[%clk 0:00:54]}  h3 {[%clk 0:00:17]} 40. d7 {[%clk 0:00:50]}  Rd2 {[%clk 0:00:17]} 41. Bf4 {[%clk 0:00:49]}  h2 {[%clk 0:00:14]} 42. Bxh2 {[%clk 0:00:41]}  Nd1 {[%clk 0:00:14]} 43. Bf4 {[%clk 0:00:36]}  Rd5 {[%clk 0:00:11]} 44. c4 {[%clk 0:00:35]}  Rd3+ {[%clk 0:00:10]} 45. Ke2 {[%clk 0:00:34]}  Rd4 {[%clk 0:00:11]} 46. c5 {[%clk 0:00:30]}  Kf5 {[%clk 0:00:10]} 47. Bd6 {[%clk 0:00:30]}  Re4+ {[%clk 0:00:05]} 48. Kxd1 {[%clk 0:00:29]} 1-0


[Site "https://www.chess.com"]